fUSD/lending_fUSD_20240121
["ID","MTS","AMOUNT","RATE_DAILY","PERIOD"]
[312399506,1705858325074,-733.67,0.00042739,31]
[312399507,1705858325086,-637.55110571,0.00042739,31]
[312399508,1705858325096,-500.0,0.00042739,31]
[312399509,1705858325107,-500.0,0.00042739,31]
[312399510,1705858325117,-634.48,0.00042739,31]
[312399511,1705858325128,-500.0,0.00042739,31]
[312399512,1705858325138,-978.66,0.00042739,31]
[312399513,1705858325148,-500.0,0.00042739,31]
[312399514,1705858325159,-516.65622582,0.00042739,31]
[312399515,1705858325170,-2489.12,0.00042739,31]
[312399516,1705858325181,-500.0,0.00042739,31]
[312399517,1705858325191,-500.0,0.00042739,31]
[312399518,1705858325201,-536.05521246,0.00042739,31]
[312399519,1705858325212,-802.28,0.00042739,31]
[312399520,1705858325222,-500.0,0.00042739,31]
[312399521,1705858325233,-500.0,0.00042739,31]
[312399522,1705858325243,-500.0,0.00042739,31]
[312399523,1705858325253,-971.0,0.00042739,31]
[312399524,1705858325262,-500.0,0.00042739,31]
[312399525,1705858325272,-500.0,0.00042739,31]
[312399526,1705858325282,-1114.65,0.00042739,31]
[312399527,1705858325292,-632.04,0.00042739,31]
[312399528,1705858325302,-500.0,0.00042739,31]
[312399529,1705858325312,-753.06,0.00042739,31]
[312399530,1705858325322,-500.0,0.00042739,31]
[312399531,1705858325332,-500.0,0.00042739,31]
[312399532,1705858325342,-500.0,0.00042739,31]
[312399533,1705858325352,-516.74637216,0.00042739,31]
[312399534,1705858325362,-500.0,0.00042739,31]
[312399535,1705858325372,-500.0,0.00042739,31]
[312399536,1705858325382,-500.0,0.00042739,31]
[312399537,1705858325391,-500.0,0.00042739,31]
[312399538,1705858325401,-1398.52,0.00042739,31]
[312399539,1705858325411,-629.95,0.00042739,31]
[312399540,1705858325421,-956.47,0.00042739,31]
[312399541,1705858325431,-500.0,0.00042739,31]
[312399542,1705858325441,-500.0,0.00042739,31]
[312399543,1705858325451,-500.0,0.00042739,31]
[312399544,1705858325461,-649.26,0.00042739,31]
[312399545,1705858325471,-892.97,0.00042739,31]
[312399546,1705858325481,-500.0,0.00042739,31]
[312399547,1705858325491,-500.0,0.00042739,31]
[312399548,1705858325501,-500.0,0.00042739,31]
[312399549,1705858325511,-652.07,0.00042739,31]
[312399550,1705858325521,-500.0,0.00042739,31]
[312399551,1705858325531,-500.0,0.00042739,31]
[312399552,1705858325541,-723.49,0.00042739,31]
[312399553,1705858325550,-1071.67,0.00042739,31]
[312399554,1705858325560,-1235.99,0.00042739,31]
[312399555,1705858325569,-500.0,0.00042739,31]
[312399556,1705858325579,-563.48,0.00042739,31]
[312399557,1705858325588,-596.07,0.00042739,31]
[312399558,1705858325598,-500.0,0.00042739,31]
[312399559,1705858325608,-610.67302014,0.00042739,31]
[312399560,1705858325618,-500.0,0.00042739,31]
[312399561,1705858325628,-1710.77,0.00042739,31]
[312399562,1705858325638,-500.0,0.00042739,31]
[312399563,1705858325648,-517.94044546,0.00042739,31]
[312399564,1705858325658,-1311.77,0.00042739,31]
[312399565,1705858325667,-727.55,0.00042739,31]
[312399566,1705858325677,-1518.81,0.00042739,31]
[312399567,1705858325686,-500.0,0.00042739,31]
[312399568,1705858325695,-678.7,0.00042739,31]
[312399569,1705858325705,-801.37,0.00042739,20]
[312399570,1705858325715,-500.0,0.00042739,31]
[312399571,1705858325725,-500.0,0.00042739,31]
[312399572,1705858325734,-500.0,0.00042739,31]
[312399573,1705858325743,-500.0,0.00042739,31]
[312399574,1705858325753,-1062.99,0.00042739,31]
[312399575,1705858325763,-500.0,0.00042739,31]
[312399576,1705858325772,-500.0,0.00042739,31]
[312399577,1705858325781,-500.0,0.00042739,31]
[312399578,1705858325792,-500.0,0.00042739,31]
[312399579,1705858325801,-730.53,0.00042739,31]
[312399580,1705858325811,-500.0,0.00042739,31]
[312399581,1705858325821,-500.0,0.00042739,31]
[312399582,1705858325830,-639.15,0.00042739,31]
[312399583,1705858325840,-500.0,0.00042739,31]
[312399584,1705858325850,-500.0,0.00042739,31]
[312399585,1705858325860,-500.0,0.00042739,31]
[312399586,1705858325869,-683.37,0.00042739,31]
[312399587,1705858325879,-713.6,0.00042739,31]
[312399588,1705858325889,-500.0,0.00042739,31]
[312399589,1705858325898,-522.29,0.00042739,31]
[312399590,1705858325908,-500.0,0.00042739,31]
[312399591,1705858325933,-500.0,0.00042739,31]
[312399592,1705858325951,-1341.01,0.00042739,31]
[312399593,1705858325972,-500.0,0.00042739,31]
[312399594,1705858325992,-815.74,0.00042739,31]
[312399595,1705858326012,-908.38,0.00042739,31]
[312399596,1705858326033,-500.0,0.00042739,31]
[312399597,1705858326050,-844.72,0.00042739,31]
[312399598,1705858326073,-500.0,0.00042739,31]
[312399599,1705858326094,-512.87300635,0.00042739,31]
[312399600,1705858326116,-500.0,0.00042739,31]
[312399601,1705858326140,-189.63507285,0.00042739,31]
[312399602,1705858326156,-500.0,0.00042739,31]
[312399603,1705858326175,-625.99,0.00042739,31]
[312399604,1705858326198,-798.26,0.00042739,31]
[312399605,1705858326218,-500.0,0.00042739,31]
[312399606,1705858326234,-944.0,0.00042739,31]
[312399607,1705858326253,-1236.84,0.00042739,31]
[312399608,1705858326272,-500.0,0.00042739,31]
[312399609,1705858326291,-772.74,0.00042739,31]
[312399610,1705858326308,-500.0,0.00042739,31]
[312399611,1705858326327,-674.68,0.00042739,31]
[312399612,1705858326345,-500.0,0.00042739,31]
[312399613,1705858326362,-677.86,0.00042739,31]
[312399614,1705858326379,-1386.82,0.00042739,31]
[312399615,1705858326397,-575.35,0.00042739,2]
[312399616,1705858326413,-546.59,0.00042739,31]
[312399617,1705858326430,-500.0,0.00042739,31]
[312399618,1705858326446,-1093.4,0.00042739,31]
[312399619,1705858326463,-876.12,0.00042739,31]
[312399620,1705858326479,-1506.33,0.00042739,31]
[312399621,1705858326496,-563.22,0.00042739,31]
[312399622,1705858326513,-775.99,0.00042739,31]
[312399623,1705858326529,-1359.97,0.00042739,31]
[312399624,1705858326545,-500.0,0.00042739,31]
[312399625,1705858326561,-1846.34,0.00042739,31]
[312399626,1705858326577,-706.97,0.00042739,31]
[312399627,1705858326593,-500.0,0.00042739,31]
[312399628,1705858326609,-827.05,0.00042739,31]
[312399629,1705858326624,-500.0,0.00042739,31]
[312399630,1705858326640,-480.76,0.00042739,31]
[312399631,1705858326656,-736.6,0.00042739,31]
[312399632,1705858326672,-1026.28,0.00042739,31]
[312399633,1705858326688,-402.38450143,0.00042739,31]
[312399634,1705858326704,-1358.53,0.00042739,31]
[312399635,1705858326720,-1261.93,0.00042739,31]
[312399636,1705858326733,-512.27047935,0.00042739,31]
[312399637,1705858326749,-500.0,0.00042739,31]
[312399638,1705858326763,-500.0,0.00042739,7]
[312399639,1705858326779,-1103.53,0.00042739,31]
[312399640,1705858326794,-800.0,0.00042739,30]
[312399641,1705858326811,-500.0,0.00042739,31]
[312399642,1705858326826,-568.36,0.00042739,31]
[312399643,1705858326841,-557.3,0.00042739,31]
[312399644,1705858326855,-500.0,0.00042739,31]
[312399645,1705858326870,-773.33,0.00042739,31]
[312399646,1705858326886,-522.22200778,0.00042739,31]
[312399647,1705858326900,-500.0,0.00042739,31]
[312399648,1705858326916,-1341.32,0.00042739,31]
[312399649,1705858326931,-948.55,0.00042739,31]
[312399650,1705858326947,-532.88,0.00042739,31]
[312399651,1705858326961,-500.0,0.00042739,31]
[312399652,1705858326976,-500.0,0.00042739,31]
[312399653,1705858326992,-500.0,0.00042739,31]
[312399654,1705858327007,-500.0,0.00042739,31]
[312399655,1705858327023,-500.0,0.00042739,31]
[312399656,1705858327038,-500.0,0.00042739,31]
[312399657,1705858327054,-500.0,0.00042739,31]
[312399658,1705858327071,-713.94,0.00042739,31]
[312399659,1705858327088,-500.0,0.00042739,31]
[312399660,1705858327103,-1009.22,0.00042739,31]
[312399661,1705858327118,-334.68307009,0.00042739,31]
[312399662,1705858327133,-500.0,0.00042739,31]
[312399663,1705858327149,-542.43,0.00042739,31]
[312399664,1705858327165,-500.0,0.00042739,31]
[312399665,1705858327180,-500.0,0.00042739,31]
[312399666,1705858327196,-500.0,0.00042739,31]
[312399667,1705858327211,-1020.8,0.00042739,31]
[312399668,1705858327227,-500.0,0.00042739,31]
[312399669,1705858327242,-500.0,0.00042739,31]
[312399670,1705858327257,-526.2480116,0.00042739,31]
[312399671,1705858327271,-674.71,0.00042739,31]
[312399672,1705858327286,-907.75,0.00042739,31]
[312399673,1705858327301,-2628.29,0.00042739,7]
[312399674,1705858327315,-500.0,0.00042739,31]
[312399675,1705858327330,-500.0,0.00042739,31]
[312399676,1705858327344,-500.0,0.00042739,31]
[312399677,1705858327358,-500.0,0.00042739,31]
[312399678,1705858327374,-500.0,0.00042739,31]
[312399679,1705858327388,-500.0,0.00042739,31]
[312399680,1705858327408,-500.0,0.00042739,31]
[312399681,1705858327423,-500.0,0.00042739,31]
[312399682,1705858327437,-500.0,0.00042739,31]
[312399683,1705858327452,-726.92,0.00042739,31]
[312399684,1705858327467,-802.51,0.00042739,31]
[312399685,1705858327483,-500.0,0.00042739,31]
[312399686,1705858327498,-500.0,0.00042739,31]
[312399687,1705858327513,-500.0,0.00042739,31]
[312399688,1705858327528,-3326.6,0.00042739,31]
[312399689,1705858327542,-919.56,0.00042739,31]
[312399690,1705858327557,-500.0,0.00042739,31]
[312399691,1705858327575,-500.0,0.00042739,31]
[312399692,1705858327600,-500.0,0.00042739,31]
[312399693,1705858327627,-604.37,0.00042739,31]
[312399694,1705858327655,-563.35,0.00042739,31]
[312399695,1705858327683,-719.21,0.00042739,31]
[312399696,1705858327710,-500.0,0.00042739,31]
[312399697,1705858327739,-814.86,0.00042739,31]
[312399698,1705858327762,-506.0887448,0.00042739,31]
[312399699,1705858327777,-500.0,0.00042739,31]
[312399700,1705858327792,-500.0,0.00042739,31]
[312399701,1705858327807,-920.57,0.00042739,31]
[312399702,1705858327823,-973.6,0.00042739,31]
[312399703,1705858327838,-317.66797957,0.00042739,31]
[312399704,1705858327853,-500.0,0.00042739,31]
[312399705,1705858327868,-642.1,0.00042739,31]
[312399706,1705858327883,-243.27,0.00042739,31]
[312399707,1705858327898,-500.0,0.00042739,31]
[312399708,1705858327912,-1551.87,0.00042739,31]
[312399709,1705858327927,-549.52,0.00042739,31]
[312399710,1705858327941,-500.0,0.00042739,7]
[312399711,1705858327956,-500.0,0.00042739,31]
[312399712,1705858327972,-500.6521897,0.00042739,31]
[312399713,1705858327988,-4046.77,0.00042739,31]
[312399714,1705858328002,-500.0,0.00042739,31]
[312399715,1705858328017,-500.0,0.00042739,31]
[312399716,1705858328031,-500.0,0.00042739,31]
[312399717,1705858328045,-500.0,0.00042739,31]
[312399718,1705858328061,-695.82,0.00042739,31]
[312399719,1705858328078,-531.05066447,0.00042739,31]
[312399720,1705858328095,-769.33,0.00042739,31]
[312399721,1705858328109,-500.0,0.00042739,31]
[312399722,1705858328124,-500.0,0.00042739,31]
[312399723,1705858328139,-700.79,0.00042739,31]
[312399724,1705858328155,-500.0,0.00042739,31]
[312399725,1705858328169,-500.0,0.00042739,31]
[312399726,1705858328185,-500.0,0.00042739,31]
[312399727,1705858328199,-745.29,0.00042739,31]
[312399728,1705858328214,-7045.39,0.00042739,31]
[312399729,1705858328229,-500.0,0.00042739,31]
[312399730,1705858328522,-500.0,0.00042739,31]
[312399731,1705858328531,-1262.27,0.00042739,31]
[312399732,1705858328541,-500.0,0.00042739,31]
[312399733,1705858328550,-690.37,0.00042739,31]
[312399734,1705858328559,-520.83,0.00042739,31]
[312399735,1705858328568,-500.0,0.00042739,31]
[312399736,1705858328577,-757.17,0.00042739,31]
[312399737,1705858328587,-5696.35,0.00042739,31]
[312399738,1705858328596,-500.0,0.00042739,31]
[312399739,1705858328606,-353.81,0.00042739,31]
[312399740,1705858328615,-506.82303326,0.00042739,31]
[312399741,1705858328624,-1837.87,0.00042739,31]
[312399742,1705858328633,-500.0,0.00042739,31]
[312399743,1705858328642,-500.0,0.00042739,31]
[312399744,1705858328651,-339.08976487,0.00042739,31]
[312399745,1705858328660,-908.52,0.00042739,31]
[312399746,1705858328672,-500.0,0.00042739,31]
[312399747,1705858328681,-500.0,0.00042739,31]
[312399748,1705858328692,-9649.82,0.00042739,31]
[312399749,1705858328701,-1916.53,0.00042739,31]
[312399750,1705858328710,-1240.43,0.00042739,31]
[312399751,1705858328719,-500.0,0.00042739,31]
[312399752,1705858328728,-695.14,0.00042739,31]
[312399753,1705858328737,-500.0,0.00042739,31]
[312399754,1705858328746,-500.0,0.00042739,31]
[312399755,1705858328755,-1114.6,0.00042739,31]
[312399756,1705858328764,-1341.69,0.00042739,31]
[312399757,1705858328773,-500.0,0.00042739,31]
[312399758,1705858328783,-500.0,0.00042739,31]
[312399759,1705858328792,-921.33,0.00042739,31]
[312399760,1705858328801,-1113.57,0.00042739,31]
[312399761,1705858328810,-366.94631269,0.00042739,31]
[312399762,1705858328819,-5530.48,0.00042739,31]
[312399763,1705858328829,-793.66,0.00042739,31]
[312399764,1705858328838,-500.0,0.00042739,31]
[312399765,1705858328847,-500.0,0.00042739,31]
[312399766,1705858328856,-795.91,0.00042739,31]
[312399767,1705858328865,-500.0,0.00042739,31]
[312399768,1705858328875,-642.52690263,0.00042739,31]
[312399769,1705858328884,-500.0,0.00042739,31]
[312399770,1705858328893,-500.0,0.00042739,31]
[312399771,1705858328903,-1440.05,0.00042739,31]
[312399772,1705858328914,-1000.0,0.00042739,2]
[312399773,1705858328923,-3700.14,0.00042739,31]
[312399774,1705858328933,-2092.99,0.00042739,31]
[312399775,1705858328942,-500.0,0.00042739,31]
[312399776,1705858328951,-745.1,0.00042739,31]
[312399777,1705858328960,-10145.93,0.00042739,31]
[312399778,1705858328970,-1414.9,0.00042739,31]
[312399779,1705858328978,-505.43,0.00042739,31]
[312399780,1705858328987,-500.0,0.00042739,31]
[312399781,1705858328996,-521.95,0.00042739,31]
[312399782,1705858329005,-500.0,0.00042739,31]
[312399783,1705858329015,-500.0,0.00042739,31]
[312399784,1705858329024,-500.0,0.00042739,31]
[312399785,1705858329033,-680.26,0.00042739,5]
[312399786,1705858329042,-909.92,0.00042739,31]
[312399787,1705858329051,-166.35802099,0.00042739,31]
[312399788,1705858329061,-647.36,0.00042739,31]
[312399789,1705858329071,-969.71,0.00042739,31]
[312399790,1705858329082,-4142.89,0.00042739,31]
[312399791,1705858329091,-1000.0,0.00042739,60]
[312399792,1705858329100,-500.0,0.00042739,31]
[312399793,1705858329110,-500.0,0.00042739,31]
[312399794,1705858329119,-816.06,0.00042739,31]
[312399795,1705858329130,-500.0,0.00042739,31]
[312399796,1705858329139,-2663.37,0.00042739,31]
[312399797,1705858329150,-500.0,0.00042739,31]
[312399798,1705858329159,-696.72,0.00042739,31]
[312399799,1705858329169,-525.38,0.00042739,31]
[312399800,1705858329178,-500.0,0.00042739,31]
[312399801,1705858329188,-764.09,0.00042739,31]
[312399802,1705858329198,-500.0,0.00042739,31]
[312399803,1705858329207,-1574.71,0.00042739,31]
[312399804,1705858329218,-9891.3,0.00042739,31]
[312399805,1705858329227,-5145.07,0.00042739,31]
[312399806,1705858329237,-932.94,0.00042739,31]
[312399807,1705858329247,-831.28,0.00042739,31]
[312399808,1705858329256,-500.0,0.00042739,31]
[312399809,1705858329266,-1364.93,0.00042739,31]
[312399810,1705858329275,-3404.67,0.00042739,31]
[312399811,1705858329284,-2645.34,0.00042739,31]
[312399812,1705858329293,-735.01,0.00042739,31]
[312399813,1705858329303,-500.0,0.00042739,31]
[312399814,1705858329312,-500.0,0.00042739,31]
[312399815,1705858329322,-511.23315605,0.00042739,31]
[312399816,1705858329331,-500.0,0.00042739,31]
[312399817,1705858329340,-1174.77,0.00042739,31]
[312399818,1705858329350,-738.19,0.00042739,31]
[312399819,1705858329361,-500.0,0.00042739,31]
[312399820,1705858329371,-14562.01,0.00042739,31]
[312399821,1705858329381,-944.69,0.00042739,31]
[312399822,1705858329391,-1080.05,0.00042739,31]
[312399823,1705858329401,-1450.35,0.00042739,31]
[312399824,1705858329411,-653.64,0.00042739,31]
[312399825,1705858329420,-500.0,0.00042739,31]
[312399826,1705858329429,-500.0,0.00042739,31]
[312399827,1705858329438,-38083.32,0.00042739,31]
[312399828,1705858329448,-772.68,0.00042739,31]
[312399829,1705858329458,-500.0,0.00042739,31]
[312399830,1705858329469,-9951.76,0.00042739,31]
[312399831,1705858329477,-996.84,0.00042739,31]
[312399832,1705858329487,-526.57,0.00042739,31]
[312399833,1705858329497,-1180.64,0.00042739,31]
[312399834,1705858329506,-500.0,0.00042739,31]
[312399835,1705858329515,-500.0,0.00042739,31]
[312399836,1705858329525,-13566.67,0.00042739,31]
[312399837,1705858329534,-500.0,0.00042739,31]
[312399838,1705858329544,-500.0,0.00042739,31]
[312399839,1705858329553,-2702.04,0.00042739,31]
[312399840,1705858329562,-2370.4,0.00042739,31]
[312399841,1705858329571,-710.24,0.00042739,31]
[312399842,1705858329581,-500.0,0.00042739,31]
[312399843,1705858329591,-841.85,0.00042739,31]
[312399844,1705858329600,-500.0,0.00042739,31]
[312399845,1705858329610,-500.0,0.00042739,31]
[312399846,1705858329619,-650.75,0.00042739,31]
[312399847,1705858329629,-891.39,0.00042739,31]
[312399848,1705858329638,-500.0,0.00042739,31]
[312399849,1705858329647,-500.0,0.00042739,31]
[312399850,1705858329657,-500.0,0.00042739,31]
[312399851,1705858329666,-500.0,0.00042739,31]
[312399852,1705858329676,-5635.24,0.00042739,31]
[312399853,1705858329686,-500.0,0.00042739,31]
[312399854,1705858329695,-500.0,0.00042739,31]
[312399855,1705858329704,-500.0,0.00042739,31]
[312399856,1705858329714,-2410.09,0.00042739,31]
[312399857,1705858329724,-500.0,0.00042739,30]
[312399858,1705858329733,-500.0,0.00042739,31]
[312399859,1705858329742,-1587.22,0.00042739,31]
[312399860,1705858329752,-500.0,0.00042739,31]
[312399861,1705858329762,-500.0,0.00042739,31]
[312399862,1705858329771,-2811.02,0.00042739,31]
[312399863,1705858329781,-1486.68,0.00042739,31]
[312399864,1705858329791,-1020.67,0.00042739,31]
[312399865,1705858329800,-766.24,0.00042739,31]
[312399866,1705858329810,-500.0,0.00042739,31]
[312399867,1705858329819,-500.0,0.00042739,31]
[312399868,1705858329828,-500.0,0.00042739,31]
[312399869,1705858329838,-4475.3,0.00042739,31]
[312399870,1705858329847,-678.56,0.00042739,31]
[312399871,1705858329856,-4341.11,0.00042739,31]
[312399872,1705858329865,-500.0,0.00042739,31]
[312399873,1705858329875,-500.0,0.00042739,31]
[312399874,1705858329884,-500.0,0.00042739,31]
[312399875,1705858329893,-517.14519196,0.00042739,31]
[312399876,1705858329902,-500.0,0.00042739,31]
[312399877,1705858329911,-893.6,0.00042739,31]
[312399878,1705858329921,-500.0,0.00042739,31]
[312399879,1705858329936,-1312.71,0.00042739,31]
[312399880,1705858329945,-718.8,0.00042739,31]
[312399881,1705858329954,-500.0,0.00042739,31]
[312399882,1705858329964,-1879.16,0.00042739,31]
[312399883,1705858329975,-843.82,0.00042739,31]
[312399884,1705858329984,-512.71,0.00042739,31]
[312399885,1705858329994,-1267.64,0.00042739,31]
[312399886,1705858330003,-808.75,0.00042739,31]
[312399887,1705858330012,-586.73,0.00042739,31]
[312399888,1705858330025,-1163.91,0.00042739,31]
[312399889,1705858330035,-500.0,0.00042739,31]
[312399890,1705858330044,-2402.4,0.00042739,31]
[312399891,1705858330054,-500.0,0.00042739,31]
[312399892,1705858330063,-500.0,0.00042739,31]
[312399893,1705858330075,-500.0,0.00042739,31]
[312399894,1705858330085,-1028.17,0.00042739,31]
[312399895,1705858330094,-767.97,0.00042739,31]
[312399896,1705858330103,-822.33,0.00042739,31]
[312399897,1705858330113,-1331.9,0.00042739,31]
[312399898,1705858330122,-1231.24,0.00042739,31]
[312399899,1705858330132,-500.0,0.00042739,31]
[312399900,1705858330141,-951.78,0.00042739,31]
[312399901,1705858330163,-673.38,0.00042739,31]
[312399902,1705858330188,-500.0,0.00042739,31]
[312399903,1705858330209,-623.65,0.00042739,31]
[312399904,1705858330230,-508.16001215,0.00042739,31]
[312399905,1705858330253,-4814.61,0.00042739,31]
[312399906,1705858330274,-2661.69,0.00042739,31]
[312399907,1705858330295,-2221.22,0.00042739,31]
[312399908,1705858330304,-1307.43,0.00042739,31]
[312399909,1705858330313,-1998.1,0.00042739,31]
[312399910,1705858330322,-2919.4,0.00042739,31]
[312399911,1705858330331,-500.0,0.00042739,31]
[312399912,1705858330340,-1516.66,0.00042739,31]
[312399913,1705858330350,-4554.17,0.00042739,31]
[312399914,1705858330358,-1723.52,0.00042739,31]
[312399915,1705858330367,-500.0,0.00042739,31]
[312399916,1705858330377,-500.0,0.00042739,31]
[312399917,1705858330386,-500.0,0.00042739,31]
[312399918,1705858330395,-505.05588758,0.00042739,31]
[312399919,1705858330404,-715.12,0.00042739,31]
[312399920,1705858330414,-966.48,0.00042739,31]
[312399921,1705858330424,-1352.25,0.00042739,31]
[312399922,1705858330433,-1024.58,0.00042739,31]
[312399923,1705858330443,-500.0,0.00042739,31]
[312399924,1705858330452,-500.0,0.00042739,31]
[312399925,1705858330462,-15221.27,0.00042739,31]
[312399926,1705858330471,-500.0,0.00042739,31]
[312399927,1705858330480,-500.0,0.00042739,31]
[312399928,1705858330489,-1317.11,0.00042739,31]
[312399929,1705858330498,-500.0,0.00042739,31]
[312399930,1705858330507,-801.04,0.00042739,31]
[312399931,1705858330517,-1430.58,0.00042739,31]
[312399932,1705858330526,-719.66,0.00042739,31]
[312399933,1705858330535,-500.0,0.00042739,31]
[312399934,1705858330545,-500.0,0.00042739,31]
[312399935,1705858330554,-500.0,0.00042739,31]
[312399936,1705858330563,-1102.3,0.00042739,31]
[312399937,1705858330572,-2450.04,0.00042739,31]
[312399938,1705858330581,-500.0,0.00042739,31]
[312399939,1705858330591,-2398.67,0.00042739,31]
[312399940,1705858330600,-11755.0,0.00042739,31]
[312399941,1705858330608,-500.0,0.00042739,31]
[312399942,1705858330617,-580.18,0.00042739,31]
[312399943,1705858330626,-500.0,0.00042739,31]
[312399944,1705858330635,-6029.9,0.00042739,31]
[312399945,1705858330643,-500.0,0.00042739,31]
[312399946,1705858330652,-500.0,0.00042739,31]
[312399947,1705858330661,-4782.28,0.00042739,31]
[312399948,1705858330670,-747.5,0.00042739,31]
[312399949,1705858330679,-1275.11,0.00042739,31]
[312399950,1705858330689,-633.63,0.00042739,31]
[312399951,1705858330698,-500.0,0.00042739,31]
[312399952,1705858330707,-1385.95,0.00042739,31]
[312399953,1705858330716,-1278.23,0.00042739,31]
[312399954,1705858330726,-838.42,0.00042739,31]
[312399955,1705858330735,-500.0,0.00042739,31]
[312399956,1705858330744,-500.0,0.00042739,31]
[312399957,1705858330753,-500.0,0.00042739,31]
[312399958,1705858330762,-500.0,0.00042739,31]
[312399959,1705858330771,-659.66,0.00042739,31]
[312399960,1705858330781,-2022.75,0.00042739,31]
[312399961,1705858330791,-500.0,0.00042739,31]
[312399962,1705858330800,-848.6,0.00042739,31]
[312399963,1705858330809,-3652.55,0.00042739,31]
[312399964,1705858330818,-3523.18,0.00042739,31]
[312399965,1705858330827,-500.0,0.00042739,31]
[312399966,1705858330836,-718.17,0.00042739,31]
[312399967,1705858330845,-898.33,0.00042739,31]
[312399968,1705858330855,-500.0,0.00042739,31]
[312399969,1705858330864,-6799.03,0.00042739,31]
[312399970,1705858330873,-1141.22,0.00042739,31]
[312399971,1705858330882,-1741.89,0.00042739,31]
[312399972,1705858330891,-1623.13,0.00042739,31]
[312399973,1705858330901,-500.0,0.00042739,31]
[312399974,1705858330910,-771.85,0.00042739,31]
[312399975,1705858330919,-569.27,0.00042739,31]
[312399976,1705858330928,-2338.74,0.00042739,31]
[312399977,1705858330937,-1004.91,0.00042739,31]
[312399978,1705858330947,-599.51,0.00042739,31]
[312399979,1705858330956,-683.46,0.00042739,31]
[312399980,1705858330965,-1665.32,0.00042739,31]
[312399981,1705858330975,-500.0,0.00042739,31]
[312399982,1705858330984,-1953.86,0.00042739,31]
[312399983,1705858330993,-500.0,0.00042739,31]
[312399984,1705858331003,-500.0,0.00042739,31]
[312399985,1705858331012,-500.0,0.00042739,31]
[312399986,1705858331021,-1307.02,0.00042739,31]
[312399987,1705858331031,-2015.53,0.00042739,31]
[312399988,1705858331040,-1641.41,0.00042739,31]
[312399989,1705858331050,-1542.52,0.00042739,31]
[312399990,1705858331059,-500.0,0.00042739,31]
[312399991,1705858331068,-500.0,0.00042739,31]
[312399992,1705858331082,-1132.72,0.00042739,31]
[312399993,1705858331091,-500.0,0.00042739,31]
[312399994,1705858331101,-500.0,0.00042739,31]
[312399995,1705858331111,-536.23,0.00042739,31]
[312399996,1705858331121,-500.0,0.00042739,31]
[312399997,1705858331131,-500.0,0.00042739,31]
[312399998,1705858331140,-500.0,0.00042739,7]
[312399999,1705858331151,-500.0,0.00042739,31]
[312400000,1705858331162,-500.0,0.00042739,31]
[312400001,1705858331172,-500.0,0.00042739,31]
[312400002,1705858331182,-860.42,0.00042739,31]
[312400003,1705858331191,-639.35,0.00042739,31]
[312400004,1705858331201,-529.07,0.00042739,31]
[312400005,1705858331210,-500.0,0.00042739,31]